Cogmind - Beta 13 @@@ ROGUE MODE // 2024.03.31 @ 12:18:48 Player: SunnyVampire Result: Destroyed by G-34 Mercenary with Small Laser Performance ------------- Evolutions (0) 0 Regions Visited (1) 200 Robots Destroyed (8) 40 Value Destroyed (195) 195 Prototype IDs (0) 0 Alien Tech Used (0) 0 Bonus (0) 0 TOTAL SCORE: 435 Bonus ------- None Cogmind --------- Core Integrity 0/250 Matter 287/300 Energy 96/100 System Corruption 0% Temperature Warm (148) Movement Walking (120) Location -10/Materials Parts ------- > --- POWER (1) -------- (None) > --- PROPULSION (2) --- Aluminum Leg > --- UTILITY (2) ------ (None) > --- WEAPON (2) ------- Small Laser Light Assault Rifle > --- INVENTORY (5) ---- Light Ion Engine Light Nuclear Core Improved Targeting Computer Light Assault Rifle Peak State ------------ > --- POWER ------------ Improved Ion Engine > --- PROPULSION ------- Aluminum Leg Aluminum Leg > --- UTILITY ---------- (None) > --- WEAPON ----------- EM Pulse Gun Small Laser > --- INVENTORY -------- Light Ion Engine Aluminum Leg Improved Targeting Computer [Rating: 6] Favorites ----------- Power Light Ion Engine Engine Light Ion Engine Propulsion Aluminum Leg Leg Aluminum Leg Utility None Weapon Small Laser Energy Gun Small Laser Ballistic Gun Light Assault Rifle Build | -11 -10 ------- Run | Yrd Mat Slots Evolved . | . . Power . | . . Propulsion . | . . Utility . | . . Weapon . | . . Parts Attached 9 | 5 4 Power 2 | 1 1 Engine 2 | 1 1 Core . | . . Reactor . | . . Propulsion 3 | 2 1 Treads . | . . Leg 3 | 2 1 Wheel . | . . Hover . | . . Flight . | . . Utility . | . . Device . | . . Storage . | . . Processor . | . . Hackware . | . . Protection . | . . Artifact . | . . Weapon 4 | 2 2 Energy Gun 3 | 2 1 Energy Cannon . | . . Ballistic Gun 1 | . 1 Ballistic Cannon . | . . Launcher . | . . Special Weapon . | . . Impact Weapon . | . . Slashing Weapon . | . . Piercing Weapon . | . . Special Melee Weapon . | . . Unidentified Prototypes . | . . Parts Lost 5 | . 5 Power 1 | . 1 Propulsion 2 | . 2 Utility . | . . Weapon 2 | . 2 Highest Loss Streak 4 | . 4 To Critical Strikes . | . . Average Slot Usage (%) 66 | . 66 Engine 13 | . 13 Leg 25 | . 25 Energy Gun 21 | . 21 Ballistic Gun 4 | . 4 Naked Turns . | . . Heaviest Build 10 | 6 10 Greatest Support 20 | 20 20 Greatest Overweight (x) . | . . Average Overweight (x) . | . . Largest Inventory Capacity 5 | 5 5 Average Capacity 5 | 5 5 Most Carried 4 | 2 4 Average Carried 1 | . 2 Final Capacity 5 | 5 5 Final Carried 4 | 2 4 Class Distribution -------------------- 100% | Mutant Dominant Class ---------------- Mutant | -10/Materials Resources | -11 -10 ----------- Run | Yrd Mat Matter Collected 288 | 250 38 Remotely . | . . Salvage Created 227 | 44 183 Parts 20 | 3 17 Haulers Intercepted . | . . Recyclers Shooed 2 | . 2 Parts Field Recycled . | . . Retrieved Matter . | . . Parts Self-Destructed . | . . Prevented . | . . Kills | -11 -10 ------- Run | Yrd Mat Combat Hostiles Destroyed 7 | 1 6 Guns 7 | 1 6 Classes Destroyed 3 | 1 2 Watcher 1 | . 1 Swarmer 3 | . 3 Grunt 4 | 1 3 Best Kill Streak 5 | 1 5 Combat Bots Only 5 | 1 5 Max Kills in Single Turn 1 | 1 1 Gunslinging . | . . Exploded . | . . Melee . | . . Uniques/NPCs Destroyed . | . . Combat | -11 -10 -------- Run | Yrd Mat Hostile Shots Fired 95 | 8 87 Missed 24 | 3 21 Damage Taken 766 | 63 703 Core 258 | 30 228 Absorbed by Shields . | . . Core Remaining (%) 88 | 88 . Volleys Fired 57 | 6 51 Largest 2 | 2 2 Hottest 80 | 80 80 Shots Fired 90 | 12 78 Gun 90 | 12 78 Cannon . | . . Launcher . | . . Special . | . . Kinetic 38 | . 38 Thermal 33 | 6 27 Explosive . | . . Electromagnetic 19 | 6 13 Robot Hit Streak 6 | 6 5 Robot Miss Streak 7 | 2 7 Penetration Max . | . . Secondary Targets . | . . Shots Hit Robots 46 | 9 37 Core Hits 20 | 2 18 Critical Kills . | . . Critical Parts Destroyed . | . . Critical Strikes . | . . Melee Attacks . | . . Impact . | . . Slashing . | . . Piercing . | . . Sneak Attacks . | . . Combat Hostiles . | . . Follow-up Attacks . | . . Damage Inflicted 590 | 126 464 Guns 550 | 126 424 Cannons . | . . Explosions 37 | . 37 Melee . | . . Ramming 3 | . 3 Kinetic 185 | . 185 Thermal 249 | 56 193 Explosive . | . . Electromagnetic 153 | 70 83 Impact . | . . Slashing . | . . Piercing . | . . Highest Corruption . | . . Average Corruption . | . . Corruption Purged . | . . Corruption Blocked . | . . Overload Shots . | . . Overflow Damage . | . . Projectiles . | . . Explosions . | . . Melee . | . . Knockbacks . | . . Impact . | . . Kinetic . | . . Secondary . | . . Self-Inflicted Damage . | . . Shots . | . . Rammed . | . . Targets Rammed 1 | . 1 Kicked 1 | . 1 Crushed . | . . Highest Temperature 334 | 100 334 Average Temperature 115 | 50 128 Received Heat Transfer 324 | 36 288 Effects 2 | . 2 Shutdowns 1 | . 1 Energy Bleed 1 | . 1 Siege Activations . | . . Robots Corrupted . | . . Combat Hostiles . | . . Parts Fried 1 | . 1 Impact Corruptions . | . . Robots Melted . | . . Combat Hostiles . | . . Parts Melted . | . . Heat Transferred 575 | 125 450 Parts Sabotaged . | . . Parts Stolen . | . . Parts Stripped . | . . Power Chain Reactions 1 | . 1 Alert | -11 -10 ------- Run | Yrd Mat Peak Influence 157 | 20 157 Initial 13 | . 13 Average 45 | 3 62 Maximum Alert Level . | . . Low Security (%) 100 | 100 100 Level 1 . | . . Level 2 . | . . Level 3 . | . . Level 4 . | . . Level 5 . | . . High Security . | . . Max Security . | . . Squads Dispatched 3 | . 3 Investigation 1 | . 1 Extermination . | . . Reinforcement 2 | . 2 Assault . | . . Garrison . | . . Intercept . | . . Searches Triggered . | . . Construction Impeded . | . . Haulers Reinforced . | . . Active Scanning Responses . | . . Cargo Convoy Interrupts . | . . Stealth | -11 -10 --------- Run | Yrd Mat Distress Signals 2 | . 2 Communications Jammed . | . . Distress Signals . | . . Times Spotted 14 | 1 13 Peak Tracking Total 5 | 1 5 Tactical Retreats . | . . Traps | -11 -10 ------- Run | Yrd Mat Traps Triggered . | . . Indirectly . | . . Trap Hack Attempts . | . . Triggered . | . . Disarmed . | . . Reprogrammed . | . . Reused . | . . Traps Extracted . | . . Installed . | . . Triggered . | . . Machines | -11 -10 ---------- Run | Yrd Mat Machines Disabled . | . . Max in Single Turn . | . . Machines Repaired . | . . Machines Dismantled . | . . Machines Sabotaged . | . . Overloaded Fab Kills . | . . Hacking | -11 -10 --------- Run | Yrd Mat Machines Accessed . | . . Terminals . | . . Fabricators . | . . Repair Stations . | . . Recycling Units . | . . Scanalyzers . | . . Garrison Access . | . . Total Hacks . | . . Successful . | . . Failed . | . . Catastrophic . | . . Database Lockouts . | . . Manual . | . . Terminals . | . . Fabricators . | . . Repair Stations . | . . Recycling Units . | . . Scanalyzers . | . . Garrison Access . | . . Terminal Hacks . | . . Fabricator Hacks . | . . Repair Station Hacks . | . . Recycling Unit Hacks . | . . Scanalyzer . | . . Garrison Access Hacks . | . . Unauthorized Hacks . | . . Terminals . | . . Fabricators . | . . Repair Stations . | . . Recycling Units . | . . Scanalyzers . | . . Garrison Access . | . . Data Cores Recovered . | . . Used . | . . Hacking Detections . | . . Full Trace Events . | . . Feedback Events . | . . Feedback Blocked . | . . Robot Schematics Acquired . | . . Robots Built . | . . Authchips . | . . Time . | . . Total Robot Build Rating . | . . Part Schematics Acquired . | . . Parts Built . | . . Authchips . | . . Time . | . . Total Part Build Rating . | . . Parts Repaired . | . . Time . | . . Parts Recycled . | . . Recycled Matter . | . . Retrieved Matter . | . . Retrieved Components . | . . Parts Scanalyzed . | . . Part Schematics Acquired . | . . Parts Damaged . | . . Bothacking | -11 -10 ------------ Run | Yrd Mat Used RIF Installer . | . . Robots Hacked . | . . Non-combat . | . . Combat . | . . Robot Hacks Applied . | . . Relay Couplers Released . | . . Fabnet Peak Effective % . | . . Robots Rewired . | . . Allies Hacked . | . . Hacks Repelled . | . . Allies | -11 -10 -------- Run | Yrd Mat Total Allies . | . . Largest Group . | . . Highest-Rated Group . | . . Highest-Rated Ally . | . . Total Orders . | . . Ally Attacks . | . . Total Damage . | . . Kills . | . . Allies Corrupted . | . . Allies Melted . | . . Intel | -11 -10 ------- Run | Yrd Mat Robot Analysis Total . | . . Derelict Logs Recovered . | . . Drone Launches . | . . Drone Recoveries . | . . Exploration | -11 -10 ------------- Run | Yrd Mat Turns Passed 400 | 115 285 Spaces Moved 211 | 83 128 Core 16 | 16 . Treads . | . . Legs 195 | 67 128 Wheels . | . . Hover . | . . Flight . | . . Fastest Speed 50 | 50 120 Average Speed 114 | 106 120 Slowest Speed 120 | 120 120 Overloaded Moves . | . . Propulsion Burnouts . | . . Robots Hopped . | . . Cave-ins Triggered . | . . Exploration Rate (%) 11 | 6 17 Regions Visited 1 Branch Regions . Pre-discovered Areas . | . . Known Exits Taken . | . . Unknown Exits Taken 1 | 1 . Scrap Searched . | . . Spaces Dug . | . . Terrain Destroyed 4 | . 4 Melee . | . . Projectile . | . . AOE 4 | . 4 Terrain Rammed . | . . Walls Destroyed . | . . Machines Disabled . | . . Actions | -11 -10 --------- Run | Yrd Mat Total 285 | 95 190 Wait . | . . Move 210 | 82 128 Hop . | . . Pick Up 7 | 2 5 Fast Attach 6 | 5 1 Attach 2 | . 2 Detach . | . . Swap 1 | . 1 Drop 1 | . 1 Fire 57 | 6 51 Melee . | . . Ram . | . . Kick 1 | . 1 Crush . | . . Escape Stasis . | . . Rewire . | . . Trap . | . . Miscellaneous . | . . Route ------- -11/Scrapyard -10/Materials History --------- Turn | Location | Event 2 | -11/Scrapyard | Met Revision 17 73 | -11/Scrapyard | Discovered new exit (range 8) 116 | -11/Scrapyard | Entered Materials 324 | -10/Materials | Build established: Mutant 354 | -10/Materials | Core integrity fell below 50% 398 | -10/Materials | Core integrity fell below 20% 401 | -10/Materials | Destroyed by G-34 Mercenary with Small Laser Last Messages --------------- 00367_ S-10 Pest destroyed. 00372_ Acquired Lgt. Nuclear Core. 00373_ Acquired 38 matter. 00376_ Acquired Sml. Laser. 00377_ U-05 Engineer lays Concrete. 00378_ K-01 Serf collects debris. 00378_ U-05 Engineer lays Concrete. 00379_ Acquired Lgt. Assault Rifle. 00380_ U-05 Engineer lays Concrete. 00380_ K-01 Serf collects debris. 00382_ U-05 Engineer builds a Wall. 00383_ U-05 Engineer builds a Door. 00384_ K-01 Serf collects debris. 00385_ U-05 Engineer destroyed. 00387_ K-01 Serf collects debris. 00394_ Imp. Ion Engine destroyed. 00396_ K-01 Serf collects debris. 00398_ W-16 Scout destroyed. 00399_ K-01 Serf collects debris. 00399_ U-05 Engineer destroyed. Map ----- +----------------------------------------------------+ | ????????????????????????????????????? | | ????????????????????????????????????? | | ????????????????????????????????????? | | ????????????????????????????????????? | | ????????????????????????????????????? | | ????????????????????????????????????? | | ????????????????????????????????????? | | ????????????????????????????????????? | | ????????????????????????????????????? | | ????????????????????????????????????? | | ????????????????????????????????????? | | ???????????????????????? ???????????? | | ???????????????????????? ???????????? | | ???????????????????????? ???????????? | | ???????????????????????? ???????????? | | ???????????????????????? ???????????? | | ?????????????# ?????? ?# ???????????? | | ?????????????? ??? ?# ???????????? | | ??????????????? ? #=#??????????? | | ???????????????? ? #*#??????????? | | ?????????????????? #g#??????????? | | ??????????????????? #[###???? ??? | | ???????????##########+##g###??"" ?? | | ?????????? w = = g= # """ # | | ?????????? !%= % %% + # | | ?????????? !%@ # """ # | | ??????????????##+#######%%*#??"" ?? | | ???????????????????????#!k #???? ??? | | ???????????????????????#= #????????? | | ???????????????????????#% #####????? | | ???????????????????????#| + # | | ???????????????????????# # """"" ?? | | ???????????????????????# # """""??? | | ???????????????????????# #?""""???? | | ???????????????######### #?? ???? | | ???????????????#* ==!!## #??"""???? | | ???????????????#**== !## #????"???? | | ???????????????# ## #????????? | | ???????????????#### #### #????????? | | ??????????????????# #??# #????????? | | ??????????????????# #??# ########## | | ??????????????????# #??# # # | | ??????????????????# #??# # # | | ????????????####### #??# # # | | ????????????# # #??# # # | | ????????????# ! # #??# + """ # | | ????????????# # #??# # """"" # | | ????????????# # #### # """"" # | | ????????????# # # """"" # | | ????????????# + # """ # | +----------------------------------------------------+ Best States ------------- Heat Dissipation 25 Energy Generation 12 Energy Capacity 265 Matter Stores 300 Matter Capacity 300 Sight Range 16 Terrain Scan Density 10 Evasion (%) 55 Item Schematics ----------------- None Robot Schematics ------------------ None Fabricated ------------ Nothing Alien Tech Used ----------------- None Achievements -------------- None Challenges ------------ None Game ------ Seed TransportLightBarrier Manual? 0 Play Time 00:09:13 Cumulative 2.3 hours Start 2024.03.31 @ 02:02:52 End 2024.03.31 @ 12:18:48 Sessions 2 Manual Loads 0 Difficulty Rogue Special Mode None Game No. 3 Rogue 3 Adventurer 0 Explorer 0 Win Type - Total 0 Types 0/0/0/0/0/0/0/0/0 Lore% 1 Gallery% 3 Achievement% 5 Wizard Run 0 Options --------- Layout 1 ASCII 0 Keyboard 0 Movement Numpad Keybinds 0 Fullscreen 0 Font 20/SmallcapsGlow Map View 50x35 Zoom Use 0% Tactical HUD 1 Map Filters NONE Filters NONE Steam 1 RUN: e801f937-a234-4d49-b762-9f289329f652